fUST/lending_fUST_20250915
["ID","MTS","AMOUNT","RATE_DAILY","PERIOD"]
[385558286,1757896246236,-168.69085998,0.000288,7]
[385558289,1757896246246,-600.0,0.00028818,2]
[385558290,1757896246255,-150.95,0.00028828,15]
[385558292,1757896246264,-1400.86,0.00028828,15]
[385558294,1757896246274,-200.0,0.00028837,120]
[385558296,1757896246284,-31678.65516655,0.0002884,30]
[385558298,1757896246293,-600.0,0.00028844,2]
[385558300,1757896246302,-500.0,0.00028849,2]
[385558302,1757896246312,-500.0,0.00028873,5]
[385558304,1757896246322,-413.0,0.00028886,120]
[385558306,1757896246331,-600.0,0.00028911,2]
[385558308,1757896246341,-150.95,0.00028928,15]
[385558310,1757896246350,-1400.86,0.00028928,15]
[385558312,1757896246360,-200.0,0.00028967,120]
[385558314,1757896246370,-500.0,0.00028973,2]
[385558316,1757896246379,-500.0,0.00028975,2]
[385558318,1757896246388,-1600.99166667,0.00028982,2]
[385558320,1757896246397,-500.0,0.00028998,2]
[385558322,1757896246407,-200.0,0.00028999,10]
[385558324,1757896246416,-1715.23,0.00029,60]
[385558326,1757896246428,-169.69948906,0.00029,8]
[385558328,1757896246438,-877.34064837,0.00029,2]
[385558330,1757896246447,-209.0,0.00029,2]
[385558332,1757896246456,-179.65838369,0.00029,60]
[385558334,1757896246465,-204.27,0.00029,60]
[385558336,1757896246474,-31889.43347038,0.00029,60]
[385558338,1757896246483,-385.2339298,0.00029,50]
[385558340,1757896246492,-13000.0,0.00029,2]
[385558342,1757896246502,-150.759999,0.00029,30]
[385558344,1757896246512,-217.77739939,0.00029,10]
[385558346,1757896246521,-160.0,0.00029,30]
[385558348,1757896246531,-160.0,0.00029,10]
[385558350,1757896246541,-160.0,0.00029,10]
[385558352,1757896246551,-531.23217266,0.00029,30]
[385558354,1757896246560,-531.23217266,0.00029,10]
[385558356,1757896246569,-531.23217266,0.00029,10]
[385558358,1757896246578,-800.0,0.00029004,2]
[385558360,1757896246587,-200.0,0.00029009,10]
[385558362,1757896246599,-351.10368381,0.00029009,7]
[385558364,1757896246608,-2700.0,0.0002901,7]
[385558366,1757896246617,-500.0,0.00029021,2]
[385558368,1757896246627,-150.95,0.00029028,15]
[385558392,1757896246845,-1400.86,0.00029028,15]
[385558394,1757896246855,-800.0,0.00029036,2]
[385558396,1757896246864,-200.0,0.00029038,120]
[385558412,1757896247000,-500.0,0.00029042,2]
[385558414,1757896247009,-800.0,0.00029066,2]
[385558416,1757896247019,-1600.99166667,0.00029082,2]
[385558418,1757896247027,-500.0,0.00029085,2]
[385558420,1757896247036,-600.0,0.0002909,2]
[385558422,1757896247046,-600.0,0.00029093,2]
[385558424,1757896247055,-1242.16,0.000291,7]
[385558426,1757896247064,-500.0,0.000291,2]
[385558428,1757896247073,-600.0,0.00029116,2]
[385558430,1757896247083,-1260.0,0.00029127,2]
[385558432,1757896247093,-150.95,0.00029128,15]
[385558434,1757896247109,-1400.86,0.00029128,15]
[385558436,1757896247118,-976.0,0.00029131,2]
[385558438,1757896247127,-2156.0,0.00029131,2]
[385558440,1757896247137,-634.0,0.00029131,2]
[385558442,1757896247147,-409.0,0.00029131,2]
[385558444,1757896247156,-410.0,0.00029131,2]
[385558446,1757896247165,-800.0,0.00029154,2]
[385558448,1757896247174,-2132.29625446,0.0002916,2]
[385558450,1757896247183,-1538.1,0.00029164,60]
[385558452,1757896247193,-2500.0,0.00029164,5]
[385558454,1757896247202,-500.0,0.00029167,2]
[385558456,1757896247211,-1600.99166667,0.00029182,2]
[385558458,1757896247221,-500.0,0.0002919,2]
[385558460,1757896247231,-17672.72,0.000292,7]
[385558463,1757896247240,-179.56,0.000292,30]
[385558465,1757896247250,-150.95,0.00029228,15]
[385558466,1757896247259,-1400.86,0.00029228,15]
[385558468,1757896247268,-966.45,0.00029234,2]
[385558470,1757896247277,-200.0,0.00029234,120]
[385558472,1757896247286,-600.0,0.00029254,2]
[385558475,1757896247297,-450.0,0.00029277,60]
[385558476,1757896247307,-1600.99166667,0.00029282,2]
[385558478,1757896247317,-443.27,0.000293,7]
[385558480,1757896247326,-351.28,0.00029314,60]
[385558483,1757896247338,-221.14966224,0.00029316,2]
[385558484,1757896247348,-500.0,0.00029316,2]
[385558486,1757896247358,-994.47513187,0.0002932,60]
[385558488,1757896247367,-600.0,0.00029323,2]
[385558491,1757896247376,-150.95,0.00029328,15]
[385558493,1757896247386,-800.0,0.00029328,2]
[385558495,1757896247395,-1400.86,0.00029328,15]
[385558497,1757896247404,-500.0,0.0002934,5]
[385558499,1757896247415,-500.0,0.0002934,20]
[385558501,1757896247425,-500.0,0.0002934,5]
[385558503,1757896247434,-500.0,0.0002934,20]
[385558505,1757896247443,-500.0,0.0002934,5]
[385558506,1757896247452,-502.71708859,0.0002934,5]
[385558508,1757896247461,-500.0,0.0002934,5]
[385558510,1757896247472,-800.0,0.00029342,2]
[385558512,1757896247481,-264.3,0.00029347,60]
[385558514,1757896247490,-600.0,0.00029347,2]
[385558516,1757896247499,-9240.75261491,0.00029353,2]
[385558518,1757896247508,-600.0,0.00029362,2]
[385558520,1757896247517,-150110.18753673,0.0002937,14]
[385558522,1757896247526,-500.0,0.0002937,5]
[385558524,1757896247535,-500.0,0.0002937,20]
[385558526,1757896247544,-500.0,0.0002937,5]
[385558528,1757896247553,-500.0,0.0002937,20]
[385558530,1757896247562,-399.92801576,0.0002937,5]
[385558532,1757896247572,-200.0,0.0002938,120]
[385558534,1757896247581,-1600.99166667,0.00029382,2]
[385558536,1757896247590,-600.0,0.00029397,2]
[385558538,1757896247600,-1000.0,0.00029421,5]
[385558540,1757896247610,-150.95,0.00029428,15]
[385558542,1757896247619,-1400.86,0.00029428,15]
[385558544,1757896247628,-800.0,0.00029431,2]
[385558546,1757896247637,-9240.75261483,0.00029439,2]
[385558548,1757896247646,-250000.0,0.0002944,2]
[385558550,1757896247656,-500.0,0.00029453,2]
[385558552,1757896247665,-1600.99166667,0.00029482,2]
[385558554,1757896247674,-407.0,0.00029484,60]
[385558556,1757896247683,-500.0,0.00029496,2]
[385558558,1757896247692,-1706.12593473,0.000295,120]
[385558560,1757896247702,-1549.643378,0.000295,2]
[385558562,1757896247711,-600.0,0.00029508,2]
[385558564,1757896247720,-9240.75261483,0.00029525,2]
[385558566,1757896247731,-150.95,0.00029528,15]
[385558568,1757896247740,-1400.86,0.00029528,15]
[385558570,1757896247750,-800.0,0.00029532,2]
[385558572,1757896247760,-202.0,0.0002954,24]
[385558574,1757896247769,-500.0,0.00029549,2]
[385558576,1757896247779,-491.52,0.00029552,60]
[385558578,1757896247789,-500.0,0.00029562,2]
[385558580,1757896247798,-1600.99166667,0.00029582,2]
[385558582,1757896247807,-600.0,0.00029587,2]
[385558584,1757896247817,-500.0,0.0002959,2]
[385558586,1757896247826,-200.0,0.000296,120]
[385558588,1757896247835,-200.0,0.000296,120]
[385558590,1757896247844,-317.58638,0.000296,120]
[385558591,1757896247854,-200.0,0.000296,120]
[385558593,1757896247863,-200.0,0.000296,120]
[385558595,1757896247872,-1000.0,0.000296,30]
[385558597,1757896247882,-9240.75261483,0.00029611,2]
[385558599,1757896247891,-200.0,0.00029618,120]
[385558601,1757896247901,-150.99015536,0.00029628,15]
[385558603,1757896247910,-1400.86,0.00029628,15]
[385558605,1757896247919,-600.0,0.0002963,2]
[385558607,1757896247929,-500.0,0.00029642,2]
[385558609,1757896247938,-500.0,0.0002965,2]
[385558611,1757896247947,-1360.0,0.00029675,2]
[385558613,1757896247956,-1600.99166667,0.00029682,2]
[385558615,1757896247966,-200.0,0.00029684,120]
[385558617,1757896247975,-1000.00420863,0.0002969,2]
[385558619,1757896247985,-9240.75261483,0.00029697,2]
[385558621,1757896247996,-151.0,0.000297,120]
[385558623,1757896248006,-308.70497819,0.00029712,2]
[385558625,1757896248015,-3000.0,0.00029712,5]
[385558626,1757896248024,-1400.86,0.00029728,15]
[385558629,1757896248034,-600.0,0.00029755,2]
[385558630,1757896248044,-600.0,0.00029761,2]
[385558632,1757896248053,-500.0,0.00029762,2]
[385558634,1757896248062,-1600.99166667,0.00029782,2]
[385558636,1757896248073,-9240.75261483,0.00029784,2]
[385558638,1757896248082,-156.67,0.00029786,2]
[385558640,1757896248092,-2809.39019941,0.000298,7]
[385558642,1757896248101,-903.26,0.000298,120]
[385558644,1757896248111,-520.1,0.000298,90]
[385558646,1757896248120,-1400.86,0.00029828,15]
[385558648,1757896248128,-500.0,0.00029838,2]
[385558650,1757896248138,-200.0,0.00029843,120]
[385558652,1757896248147,-500.0,0.00029864,2]
[385558654,1757896248156,-600.0,0.00029864,2]
[385558656,1757896248165,-9240.75261483,0.0002987,2]
[385558658,1757896248174,-298.81,0.00029892,7]
[385558660,1757896248184,-364.89,0.000299,120]
[385558662,1757896248193,-200.0,0.00029901,120]
[385558663,1757896248202,-1000.0,0.00029902,20]
[385558665,1757896248211,-1401.04499997,0.00029928,15]
[385558667,1757896248220,-9240.75261483,0.00029956,2]
[385558669,1757896248229,-1290.49365285,0.00029968,5]
[385558671,1757896248239,-151.0,0.00029986,50]
[385558673,1757896248249,-200.0,0.00029992,120]
[385558675,1757896248258,-800.0,0.00029992,2]
[385558677,1757896248267,-844.56237025,0.00029998,120]
[385558679,1757896248276,-8206.88957088,0.0003,10]
[385558681,1757896248285,-165.46,0.0003,5]
[385558683,1757896248295,-404.37134552,0.0003,10]
[385558685,1757896248304,-5615.41722344,0.0003,2]
[385558687,1757896248313,-217.60587337,0.0003,10]
[385558689,1757896248322,-1571.38918067,0.0003,10]
[385558691,1757896248331,-500.0,0.0003,2]
[385558693,1757896248340,-500.0,0.0003,60]
[385558695,1757896248351,-772.0,0.0003,120]
[385558697,1757896248360,-416.0,0.0003,14]
[385558698,1757896248370,-160.0,0.0003,120]
[385558700,1757896248379,-230.0,0.0003,120]
[385558702,1757896248388,-1000.0,0.0003,120]
[385558704,1757896248399,-492.50579481,0.0003,10]
[385558707,1757896248412,-200.0,0.0003,120]
[385558709,1757896248421,-200.000001,0.0003,30]
[385558710,1757896248431,-160.0,0.0003,120]
[385558712,1757896248441,-255.40525,0.0003,2]
[385558714,1757896248451,-160.0,0.0003,10]
[385558716,1757896248460,-531.23217266,0.0003,10]
[385558718,1757896248469,-1500.0,0.0003,2]
[385558720,1757896248478,-4000.0,0.0003,4]
[385558722,1757896248488,-214.6614872,0.00030006,50]
[385558724,1757896248497,-600.0,0.00030026,7]
[385558726,1757896248506,-800.0,0.00030029,7]
[385558728,1757896248516,-2080.0,0.00030037,50]
[385558730,1757896248525,-9240.75261483,0.00030042,2]
[385558732,1757896248534,-501.0745341,0.00030055,7]
[385558734,1757896248543,-1242.16,0.000301,7]
[385558736,1757896248552,-1217.81560906,0.000301,2]
[385558738,1757896248561,-600.0,0.00030101,7]
[385558740,1757896248570,-7205.35265836,0.00030128,2]
[385558741,1757896248579,-9240.75261483,0.00030128,2]
[385558743,1757896248588,-284.45650111,0.0003013,2]
[385558745,1757896248598,-858.35531405,0.0003013,15]
[385558747,1757896248608,-500.0,0.00030138,2]
[385558749,1757896248617,-600.0,0.00030159,7]
[385558751,1757896248626,-600.0,0.00030163,7]
[385558753,1757896248635,-800.0,0.00030175,7]
[385558755,1757896248645,-200.0,0.00030176,120]
[385558757,1757896248654,-952.75800448,0.000302,2]
[385558759,1757896248663,-150.94191926,0.000302,120]
[385558761,1757896248673,-17672.72,0.000302,7]
[385558763,1757896248682,-443.27,0.000302,7]
[385558765,1757896248691,-179.56,0.000302,30]
[385558767,1757896248700,-1460.0,0.00030223,2]
[385558769,1757896248710,-600.0,0.00030226,7]
[385558771,1757896248719,-228.0,0.00030229,2]
[385558773,1757896248729,-3049892.87794815,0.00030229,20]
[385560650,1757897237120,-236.44028087,0.00021046,2]
[385560653,1757897249089,-646.1147386,0.00020836,2]
[385560671,1757897354126,-1390.9924,0.00020836,2]
[385560674,1757897366152,-2962.8928614,0.00020836,2]
[385560675,1757897366172,-271.3600936,0.00021259,2]
[385560676,1757897366191,-4135.4191123,0.00021362,2]
[385560677,1757897366211,-300.0,0.00021916,2]
[385560678,1757897366231,-480.0,0.00021917,2]
[385560679,1757897366250,-577.74,0.00021917,2]
[385560680,1757897366269,-480.0,0.00021917,2]
[385560681,1757897366290,-279.13560433,0.00021917,2]
[385560683,1757897372151,-2482.03133074,0.00020628,2]
[385560739,1757897432343,-308.09929999,0.00020628,2]
[385560751,1757897432448,-2209.86936927,0.00020628,2]
[385560753,1757897432458,-300.0,0.00021916,2]
[385560755,1757897432467,-200.86439567,0.00021917,2]
[385560757,1757897432476,-480.0,0.00021917,2]
[385560759,1757897432486,-480.0,0.00021917,2]
[385560761,1757897432495,-480.0,0.00021917,2]
[385560763,1757897432504,-480.0,0.00021917,2]
[385560765,1757897432514,-449.92776307,0.00021917,2]
[385560766,1757897432524,-480.0,0.00021917,2]
[385560767,1757897432533,-480.0,0.00021917,2]
[385560768,1757897432542,-480.0,0.00021917,2]
[385560769,1757897432551,-480.0,0.00021917,2]
[385560770,1757897432559,-480.0,0.00021917,2]
[385560771,1757897432568,-480.0,0.00021917,2]
[385560772,1757897432577,-480.0,0.00021917,2]
[385560773,1757897432586,-480.0,0.00021917,2]
[385560774,1757897432596,-480.0,0.00021917,2]
[385560775,1757897432605,-480.0,0.00021917,2]
[385560776,1757897432614,-480.0,0.00021917,2]
[385560777,1757897432623,-480.0,0.00021917,2]
[385560778,1757897432632,-480.0,0.00021917,2]
[385560779,1757897432641,-480.0,0.00021917,2]
[385560780,1757897432651,-480.0,0.00021917,2]
[385560781,1757897432660,-480.0,0.00021917,2]
[385560782,1757897432669,-480.0,0.00021917,2]
[385560783,1757897432678,-480.0,0.00021917,2]
[385560784,1757897432688,-460.0,0.00021917,2]
[385560785,1757897432697,-480.0,0.00021917,2]
[385560786,1757897432706,-480.0,0.00021917,2]
[385560787,1757897432715,-480.0,0.00021917,2]
[385560788,1757897432724,-480.0,0.00021917,2]
[385560789,1757897432734,-480.0,0.00021917,2]
[385560791,1757897432743,-467.99659535,0.00021917,2]
[385560792,1757897432753,-480.0,0.00021917,2]
[385560794,1757897432762,-480.0,0.00021917,2]
[385560796,1757897432771,-480.0,0.00021917,2]
[385560798,1757897432780,-497.09,0.00021917,2]
[385560800,1757897432790,-480.0,0.00021917,2]
[385560802,1757897432799,-480.0,0.00021917,2]
[385560804,1757897432809,-480.0,0.00021917,2]
[385560806,1757897432818,-480.0,0.00021917,2]
[385560808,1757897432827,-480.0,0.00021917,2]
[385560810,1757897432836,-489.04,0.00021917,2]
[385560812,1757897432846,-480.0,0.00021917,2]
[385560814,1757897432855,-480.0,0.00021917,2]
[385560816,1757897432864,-480.0,0.00021917,2]
[385560818,1757897432873,-480.0,0.00021917,2]
[385560820,1757897432883,-480.0,0.00021917,2]
[385560822,1757897432891,-263.20992213,0.00021917,2]
[385561532,1757897440383,-5000.0,0.00021599,2]
[385561534,1757897440392,-341.42655225,0.00021817,2]
[385561535,1757897440403,-310.40007787,0.00021917,2]
[385561537,1757897440412,-480.0,0.00021917,2]
[385561539,1757897440422,-480.0,0.00021917,2]
[385561541,1757897440432,-480.0,0.00021917,2]
[385561543,1757897440444,-480.0,0.00021917,2]
[385561545,1757897440454,-480.0,0.00021917,2]
[385561547,1757897440463,-480.0,0.00021917,2]
[385561548,1757897440471,-480.0,0.00021917,2]
[385561550,1757897440482,-480.0,0.00021917,2]
[385561552,1757897440490,-480.0,0.00021917,2]
[385561554,1757897440499,-480.0,0.00021917,2]
[385561556,1757897440509,-575.06287023,0.00021917,2]
[385561557,1757897440518,-480.0,0.00021917,2]
[385561559,1757897440527,-480.0,0.00021917,2]
[385561561,1757897440536,-480.0,0.00021917,2]
[385561563,1757897440545,-480.0,0.00021917,2]
[385561565,1757897440554,-480.0,0.00021917,2]
[385561567,1757897440563,-480.0,0.00021917,2]
[385561568,1757897440573,-88.11049965,0.00021917,2]
[385561937,1757897446485,-391.88950035,0.00021917,2]
[385561938,1757897446494,-480.0,0.00021917,2]
[385561939,1757897446503,-500.0,0.00021973,2]
[385561940,1757897446513,-500.0,0.00021973,2]
[385561941,1757897446523,-500.0,0.00021973,2]
[385561942,1757897446535,-29.11718693,0.00021973,2]
[385561944,1757897446551,-470.88281307,0.00021973,2]
[385561947,1757897446560,-510.3,0.0002219,3]
[385561948,1757897446569,-219.11796104,0.0002219,3]
[385562012,1757897556870,152.0,0.00024,120]
[385562013,1757897558264,152.0,0.000256,120]
[385562014,1757897559665,152.0,0.000271,120]
[385562111,1757898035390,200.0,0.00027,120]
[385562114,1757898051002,5000.0,0.00021046,2]
[385562177,1757898386789,20000.0,0.00024,30]
[385562186,1757898431080,-238.8541862,0.00021046,2]
[385562218,1757898559112,-5000.0,0.00020836,2]
[385562219,1757898559134,-189.189599,0.00021259,2]
[385562223,1757898573093,-329.9510433,0.00021868,2]
[385562224,1757898573116,-372.4262617,0.00021868,2]
[385562225,1757898573140,-385.4171496,0.00021868,2]
[385562226,1757898573164,-300.0,0.00021916,2]
[385562227,1757898573187,-284.5461454,0.00021917,2]
[385562228,1757898577707,1551.3948524,0.00021698,2]
[385562262,1757898632655,-1280.78756173,0.00021698,2]
[385562386,1757898640720,-2167.81758587,0.00021698,2]
[385562387,1757898640730,-300.0,0.00021916,2]
[385562388,1757898640739,-195.4538546,0.00021917,2]
[385562389,1757898640748,-480.0,0.00021917,2]
[385562390,1757898640757,-150.26,0.00021917,2]
[385562391,1757898640766,-480.0,0.00021917,2]
[385562392,1757898640775,-56.10744821,0.00021917,2]
[385562401,1757898645802,-920.0,0.00021481,2]
[385562402,1757898645839,-308.82478795,0.00021481,2]
[385562445,1757898646747,-454.62695524,0.00021481,2]
[385562450,1757898646779,-86.21755056,0.00021481,2]
[385562459,1757898646859,-2676.02330469,0.00021481,2]
[385562502,1757898755593,155.0,0.00024,120]
[385562503,1757898756959,155.0,0.000257,120]
[385562504,1757898758349,155.0,0.000273,120]
[385562519,1757898790766,206.53222762,0.000199,2]
[385562558,1757898971390,210.96300697,0.000199,2]
[385562567,1757899108638,24900.0,0.00023288,30]
[385562572,1757899164351,210.95129752,0.000199,2]
[385562579,1757899235207,200.0,0.00027,120]
[385562590,1757899357399,210.86103175,0.000199,2]
[385562636,1757899740639,-0.01,0.00020432,2]
[385562638,1757899740744,-149.51911713,0.00020432,2]
[385562639,1757899747098,-9850.47088287,0.00020432,2]
[385562640,1757899747122,-300.0,0.00020672,2]
[385562641,1757899747142,-2468.95799588,0.00020673,2]
[385562643,1757899752121,-2202.31853375,0.00020673,2]
[385562644,1757899752144,-5000.0,0.00020882,2]
[385562645,1757899752165,-300.0,0.00021085,20]
[385562646,1757899752187,-300.0,0.00021085,20]
[385562647,1757899752210,-300.0,0.00021085,20]
[385562648,1757899752231,-300.0,0.00021085,20]
[385562649,1757899752255,-300.0,0.00021085,20]
[385562650,1757899752275,-300.0,0.00021085,20]
[385562651,1757899752295,-300.0,0.00021085,20]
[385562652,1757899752316,-300.0,0.00021085,20]
[385562653,1757899752337,-300.0,0.00021085,20]
[385562654,1757899752360,-300.0,0.00021085,20]
[385562655,1757899752383,-300.0,0.00021085,20]
[385562656,1757899752404,-300.0,0.00021085,20]
[385562657,1757899752427,-300.0,0.00021085,20]
[385562658,1757899752447,-300.0,0.00021085,20]
[385562659,1757899752472,-300.0,0.00021085,20]
[385562660,1757899752491,-1200.0,0.00021305,2]
[385562661,1757899752511,-300.0,0.00021306,2]
[385562662,1757899752532,-1200.0,0.00021307,2]
[385562663,1757899752554,-300.0,0.00021307,2]
[385562664,1757899752573,-300.0,0.00021307,2]
[385562665,1757899752592,-500.0,0.00021531,2]
[385562666,1757899752613,-500.0,0.00021531,2]
[385562667,1757899752633,-500.0,0.00021531,2]
[385562668,1757899752655,-550.90432011,0.00021531,2]
[385562669,1757899752676,-500.0,0.00021531,2]
[385562670,1757899752699,-500.0,0.00021531,2]
[385562671,1757899752724,-500.0,0.00021531,2]
[385562672,1757899752748,-298.98178455,0.00021531,2]
[385562673,1757899752769,-500.0,0.00021531,2]
[385562674,1757899752790,-500.0,0.00021531,2]
[385562675,1757899752812,-283.41208605,0.00021531,2]
[385562676,1757899752836,-253.712454,0.00021531,2]
[385562677,1757899752858,-558.88274913,0.00021532,2]
[385562678,1757899752878,-8910.45459112,0.00021533,2]
[385562679,1757899752898,-500.0,0.00021631,2]
[385562680,1757899752918,-228.53809701,0.00021631,2]
[385562681,1757899752940,-500.0,0.00021631,2]
[385562682,1757899752961,-500.0,0.00021631,2]
[385562683,1757899752982,-500.0,0.00021631,2]
[385562684,1757899753002,-500.0,0.00021631,2]
[385562685,1757899753022,-500.0,0.00021631,2]
[385562686,1757899753042,-500.0,0.00021631,2]
[385562687,1757899753061,-500.0,0.00021631,2]
[385562688,1757899753081,-500.0,0.00021631,2]
[385562689,1757899753101,-500.0,0.00021631,2]
[385562690,1757899753122,-500.0,0.00021631,2]
[385562691,1757899753143,-500.0,0.00021631,2]
[385562692,1757899753164,-511.14794625,0.00021631,2]
[385562693,1757899753185,-500.0,0.00021631,2]
[385562694,1757899753205,-450.0,0.00021631,2]
[385562695,1757899753226,-500.0,0.00021631,2]
[385562696,1757899753246,-500.0,0.00021631,2]
[385562697,1757899753266,-299.21281442,0.00021632,2]
[385562698,1757899753399,-39117.09629886,0.00021632,2]
[385562699,1757899753428,-8530.36661424,0.00021632,2]
[385562700,1757899753453,-8725.8622677,0.00021636,2]
[385562701,1757899753474,-2107.1319151,0.00021636,2]
[385562702,1757899753493,-500.0,0.00021673,2]
[385562703,1757899753512,-502.12426079,0.00021673,2]
[385562704,1757899753532,-502.87653525,0.00021673,2]
[385562705,1757899753554,-500.0,0.00021673,2]
[385562706,1757899753574,-500.0,0.00021673,2]
[385562707,1757899753594,-500.0,0.00021673,2]
[385562708,1757899753613,-500.0,0.00021673,2]
[385562709,1757899753632,-500.0,0.00021673,2]
[385562710,1757899753652,-500.0,0.00021673,2]
[385562711,1757899753671,-501.37998563,0.00021673,2]
[385562712,1757899753690,-500.0,0.00021673,2]
[385562713,1757899753709,-500.0,0.00021673,2]
[385562714,1757899753729,-500.0,0.00021673,2]
[385562715,1757899753749,-500.0,0.00021673,2]
[385562716,1757899753769,-155.76395663,0.00021673,2]
[385562717,1757899753788,-500.0,0.00021673,2]
[385562718,1757899753856,500.0,0.00021673,2]
[385562721,1757899762966,5000.0,0.00021681,2]
[385562723,1757899765078,-184.28313601,0.000219,2]
[385562724,1757899765099,-480.0,0.00021917,2]
[385562725,1757899765120,-480.0,0.00021917,2]
[385562726,1757899765147,-480.0,0.00021917,2]
[385562727,1757899765168,-14.78646399,0.00021917,2]
[385562728,1757899771377,328.72347037,0.00021698,2]
[385562731,1757899786704,5000.0,0.00021698,2]
[385562734,1757899804433,500.0,0.00021673,2]
[385562735,1757899804464,500.0,0.00021673,2]
[385562736,1757899804525,500.0,0.00021673,2]
[385562737,1757899806374,157.97246439,0.00030278,50]
[385562738,1757899809810,5000.0,0.00021697,2]
[385562747,1757899831743,1000.0,0.00021193,2]
[385562755,1757899832053,-180.0,0.00021916,2]
[385562756,1757899832063,-219.70554934,0.00021916,2]
[385562760,1757899833340,5000.0,0.00021697,2]
[385563325,1757899843139,-980.29445066,0.00021916,2]
[385563327,1757899843148,-300.0,0.00021916,2]
[385563329,1757899843157,-300.0,0.00021916,2]
[385563331,1757899843167,-212.0,0.00021916,2]
[385563333,1757899843176,-268.4381487,0.00021917,2]
[385563335,1757899843185,-465.21353601,0.00021917,2]
[385563337,1757899843194,-480.0,0.00021917,2]
[385563339,1757899843203,-480.0,0.00021917,2]
[385563341,1757899843212,-480.0,0.00021917,2]
[385563343,1757899843221,-480.0,0.00021917,2]
[385563345,1757899843230,-480.0,0.00021917,2]
[385563347,1757899843239,-480.0,0.00021917,2]
[385563349,1757899843248,-480.0,0.00021917,2]
[385563351,1757899843257,-480.0,0.00021917,2]
[385563353,1757899843266,-480.0,0.00021917,2]
[385563355,1757899843275,-522.32,0.00021917,2]
[385563357,1757899843284,-480.0,0.00021917,2]
[385563359,1757899843293,-480.0,0.00021917,2]
[385563361,1757899843302,-480.0,0.00021917,2]
[385563363,1757899843311,-607.3,0.00021917,2]
[385563365,1757899843321,-480.0,0.00021917,2]
[385563367,1757899843329,-480.0,0.00021917,2]
[385563369,1757899843338,-480.0,0.00021917,2]
[385563371,1757899843347,-581.11,0.00021917,2]
[385563373,1757899843357,-480.0,0.00021917,2]
[385563375,1757899843366,-480.0,0.00021917,2]
[385563377,1757899843375,-518.41,0.00021917,2]
[385563379,1757899843383,-480.0,0.00021917,2]
[385563381,1757899843392,-480.0,0.00021917,2]
[385563383,1757899843401,-571.85511877,0.00021917,2]
[385563385,1757899843411,-1736.48,0.00021917,2]
[385563387,1757899843420,-490.39256208,0.00021917,2]
[385563389,1757899843429,-480.0,0.00021917,2]
[385563391,1757899843438,-611.85,0.00021917,2]
[385563393,1757899843447,-482.16279439,0.00021917,2]
[385563395,1757899843456,-500.0,0.00022173,2]
[385563397,1757899843465,-500.0,0.00022173,2]
[385563399,1757899843474,-500.0,0.00022173,2]
[385563401,1757899843487,-501.76531383,0.00022173,2]
[385563403,1757899843496,-500.0,0.00022173,2]
[385563405,1757899843505,-482.24641228,0.00022188,3]
[385563407,1757899843515,-480.0,0.00022188,3]
[385563409,1757899843525,-556.45,0.00022188,3]
[385563411,1757899843534,-480.0,0.00022188,3]